bitfinex/quotes_SOLUSD_20250714
["timestamp","ask_amount","ask_price","bid_price","bid_amount"]
[1752460004049,7.2102,164.04,163.95,8.01853274]
[1752460004249,8.01853274,164.01,163.95,8.01853274]
[1752460004644,8.01853274,164.01,163.95,16.78468397]
[1752460004834,0.7,164.04,163.96,8.01853274]
[1752460004835,8.01853274,164.02,163.96,8.01853274]
[1752460005035,0.7,164.04,163.97,33.74]
[1752460005546,8.01853274,164.02,163.97,33.74]
[1752460005855,8.01853274,164.03,163.98,8.01853274]
[1752460006357,8.01853274,164.0,163.97,123.34]
[1752460006563,8.01853274,164.01,163.97,123.34]
[1752460006936,8.01853274,164.0,163.97,123.34]
[1752460007129,0.7,164.04,163.97,123.34]
[1752460007544,8.01853274,164.0,163.97,123.34]
[1752460007743,8.01853274,164.01,163.97,123.34]
[1752460007940,8.01853274,164.0,163.98,33.68]
[1752460008144,0.7,164.04,163.98,33.68]
[1752460008351,2.3603,164.06,163.98,41.69853274]
[1752460008642,2.3603,164.06,163.98,33.68]
[1752460008844,8.01853274,164.03,163.98,123.28]
[1752460009049,8.01853274,164.02,163.98,123.28]
[1752460009340,8.01853274,164.02,163.98,33.68]
[1752460009539,8.01853274,164.01,163.98,33.68]
[1752460009746,8.01853274,163.99,163.98,33.68]
[1752460010268,8.01853274,163.99,163.98,33.64]
[1752460010485,0.7,164.01,163.98,33.64]
[1752460010765,8.01853274,163.99,163.98,33.64]
[1752460011249,8.01853274,163.99,163.98,33.62]
[1752460012348,0.7,164.01,163.98,33.62]
[1752460012556,8.01853274,163.99,163.98,33.62]
[1752460012858,1.6603,164.06,163.98,33.62]
[1752460012859,8.01853274,164.02,163.98,33.62]
[1752460013237,8.01853274,164.01,163.98,33.62]
[1752460013456,1.6603,164.06,163.98,33.62]
[1752460013644,0.7,164.05,163.98,33.62]
[1752460013849,8.01853274,164.01,163.98,33.62]
[1752460014044,0.7,164.05,163.98,33.62]
[1752460014240,8.01853274,164.03,163.98,33.62]
[1752460014444,8.01853274,164.02,163.98,33.62]
[1752460015062,8.01853274,163.99,163.98,123.22]
[1752460015380,1.6603,164.06,163.98,33.62]
[1752460015585,8.01853274,164.03,163.98,41.63853274]
[1752460015859,8.01853274,164.01,163.98,33.62]
[1752460016163,8.01853274,164.0,163.98,33.62]
[1752460016376,8.01853274,163.99,163.98,33.62]
[1752460017567,0.7,164.01,163.98,33.62]
[1752460017774,8.01853274,163.99,163.98,33.62]
[1752460017936,8.01853274,163.99,163.97,26.0]
[1752460018141,8.01853274,163.99,163.98,33.88]
[1752460018363,0.7,164.03,163.98,33.88]
[1752460018564,1.6603,164.06,163.98,33.88]
[1752460018565,8.01853274,163.99,163.98,33.88]
[1752460019335,8.71853274,163.99,163.98,33.88]
[1752460019638,8.01853274,163.99,163.95,26.0]
[1752460019846,0.7,164.03,163.96,59.86]
[1752460020052,8.01853274,163.99,163.96,59.86]
[1752460020282,8.01853274,163.99,163.96,26.0]
[1752460020490,8.01853274,163.98,163.97,33.88]
[1752460020781,0.7,164.01,163.96,26.0]
[1752460020963,8.01853274,163.99,163.97,60.16]
[1752460021167,8.01853274,164.01,163.97,60.16]
[1752460021567,0.66,164.01,163.97,60.16]
[1752460021878,8.01853274,164.0,163.97,60.16]
[1752460022070,0.66,164.03,163.97,60.16]
[1752460022467,8.01853274,164.02,163.97,149.76]
[1752460022660,0.66,164.03,163.97,157.77853274]
[1752460022973,1.6603,164.06,163.97,149.76]
[1752460022974,8.01853274,164.02,163.97,149.76]
[1752460023182,0.66,164.05,163.97,149.76]
[1752460023684,8.01853274,164.03,163.97,123.89853274]
[1752460023875,8.01853274,164.02,163.98,33.96]
[1752460024074,8.01853274,164.01,163.98,33.96]
[1752460024265,8.01853274,164.0,163.98,123.56]
[1752460024584,8.01853274,163.99,163.98,123.56]
[1752460024756,8.67853274,163.99,163.98,123.56]
[1752460024962,8.01853274,163.99,163.98,33.96]
[1752460025169,1.6603,164.06,163.98,33.96]
[1752460025170,8.01853274,164.04,164.0,26.0]
[1752460025492,8.01853274,164.02,164.01,33.98]
[1752460025663,1.6603,164.06,164.01,33.98]
[1752460025862,0.66,164.09,164.03,8.01853274]
[1752460026059,0.66,164.12,164.04,33.98]
[1752460026257,0.66,164.12,164.07,26.0]
[1752460026459,8.01853274,164.09,164.08,34.0]
[1752460026677,8.01853274,164.1,164.08,34.0]
[1752460027063,15.44345625,164.11,164.08,34.0]
[1752460027473,8.01853274,164.1,164.08,34.0]
[1752460027673,8.01853274,164.09,164.08,34.0]
[1752460027909,8.01853274,164.09,164.02,26.0]
[1752460027910,8.67853274,164.09,164.02,26.0]
[1752460028072,8.01853274,164.1,163.98,16.78468397]
[1752460028073,2.2389,164.08,163.98,16.78468397]
[1752460028278,1.5789,164.08,164.01,8.01853274]
[1752460028476,1.5789,164.08,164.02,60.3]
[1752460028699,8.01853274,164.05,164.02,26.0]
[1752460028878,0.66,164.07,164.03,34.3]
[1752460028879,8.01853274,164.04,164.03,34.3]
[1752460029298,0.66,164.07,164.03,34.3]
[1752460029505,8.01853274,164.05,164.03,34.3]
[1752460029681,8.01853274,164.06,164.03,34.3]
[1752460029879,2.2389,164.08,164.03,34.3]
[1752460030293,8.08492351,164.11,164.04,8.01853274]
[1752460030499,8.08492351,164.11,164.03,34.3]
[1752460030500,8.01853274,164.08,164.05,34.34]
[1752460030694,8.01853274,164.06,164.05,34.34]
[1752460030899,8.01853274,164.07,164.05,34.34]
[1752460031104,0.66,164.1,164.05,34.34]
[1752460031311,8.01853274,164.07,164.05,34.34]
[1752460031504,8.01853274,164.06,164.05,34.34]
[1752460031803,8.67853274,164.06,164.05,34.34]
[1752460032004,8.01853274,164.06,164.05,34.34]
[1752460032178,8.67853274,164.06,164.05,34.34]
[1752460033204,0.66,164.06,164.05,34.34]
[1752460033385,8.67853274,164.06,164.05,34.34]
[1752460034295,0.66,164.06,164.05,34.34]
[1752460034509,8.67853274,164.06,164.05,34.34]
[1752460036019,0.66,164.06,164.05,34.34]
[1752460036192,8.67853274,164.06,164.05,34.34]
[1752460037404,8.01853274,164.06,164.05,34.34]
[1752460037808,8.01853274,164.08,164.05,34.34]
[1752460038120,8.01853274,164.07,164.05,34.34]
[1752460039112,7.42492351,164.11,164.05,34.34]
[1752460039113,8.01853274,164.06,164.05,34.34]
[1752460039313,8.67853274,164.06,164.05,34.34]
[1752460039618,8.01853274,164.06,164.05,34.34]
[1752460039919,8.67853274,164.06,164.05,60.42]
[1752460040517,8.01853274,164.06,164.05,60.42]
[1752460041015,0.66,164.09,164.05,60.42]
[1752460041193,8.01853274,164.06,164.05,60.42]
[1752460044350,8.01853274,164.08,164.05,60.42]
[1752460044547,8.01853274,164.07,164.05,60.42]
[1752460044743,0.66,164.1,164.05,60.42]
[1752460045050,8.01853274,164.07,164.05,60.42]
[1752460045253,8.08492351,164.11,164.05,60.42]
[1752460045442,8.01853274,164.07,164.05,60.42]
[1752460045752,8.01853274,164.06,164.05,60.42]
[1752460047418,0.66,164.09,164.05,60.42]
[1752460047648,0.66,164.08,164.05,60.42]
[1752460047855,8.01853274,164.06,164.05,60.42]
[1752460048350,8.01853274,164.07,164.05,60.42]
[1752460048670,0.66,164.08,164.05,60.42]
[1752460048952,8.01853274,164.09,164.05,60.42]
[1752460049123,0.66,164.1,164.05,60.42]
[1752460049444,8.01853274,164.09,164.05,60.42]
[1752460049859,0.66,164.1,164.05,60.42]
[1752460050467,7.42492351,164.11,164.05,60.42]
[1752460050972,8.01853274,164.1,164.05,68.43853274]
[1752460051172,8.01853274,164.07,164.05,60.42]
[1752460051355,0.71,164.09,164.05,60.42]
[1752460051538,8.01853274,164.09,164.05,60.42]
[1752460051740,8.01853274,164.1,164.05,60.42]
[1752460052139,8.01853274,164.09,164.05,150.02]
[1752460052439,7.42492351,164.11,164.07,8.01853274]
[1752460052662,7.42492351,164.11,164.08,33.88]
[1752460053755,7.42492351,164.11,164.09,8.01853274]
[1752460053953,7.42492351,164.11,164.1,33.88]
[1752460056164,16.15345625,164.11,164.1,33.88]
[1752460057342,15.44345625,164.11,164.1,33.88]
[1752460057549,7.42492351,164.11,164.1,33.88]
[1752460057767,15.44345625,164.11,164.1,33.88]
[1752460058075,7.42492351,164.11,164.1,33.88]
[1752460060075,15.44345625,164.11,164.1,33.88]
[1752460060270,16.15345625,164.11,164.07,89.6]
[1752460060488,16.15345625,164.11,164.08,33.86]
[1752460060489,8.01853274,164.09,164.08,33.86]
[1752460060656,7.42492351,164.11,164.08,33.86]
[1752460061274,7.42492351,164.11,164.08,41.87853274]
[1752460061758,7.42492351,164.11,164.08,33.86]
[1752460062076,7.42492351,164.11,164.08,41.87853274]
[1752460063174,7.42492351,164.11,164.08,33.86]
[1752460063362,7.42492351,164.11,164.08,41.87853274]
[1752460063971,7.42492351,164.11,164.1,8.01853274]
[1752460064176,7.42492351,164.11,164.1,41.83853274]
[1752460064378,7.42492351,164.11,164.1,33.82]
[1752460064893,7.42492351,164.11,164.1,41.83853274]
[1752460066274,7.42492351,164.11,164.1,58.62321671]
[1752460067400,7.42492351,164.11,164.1,50.60468397]
[1752460067771,7.42492351,164.11,164.1,58.62321671]
[1752460071171,7.42492351,164.11,164.1,68.89468397]
[1752460071372,7.42492351,164.11,164.1,76.91321671]
[1752460072398,7.42492351,164.11,164.1,68.89468397]
[1752460073287,7.42492351,164.11,164.1,76.91321671]
[1752460074503,7.42492351,164.11,164.1,50.60468397]
[1752460075011,7.42492351,164.11,164.1,33.82]
[1752460075790,7.42492351,164.11,164.1,33.64]
[1752460076106,16.15345625,164.11,164.1,33.64]
[1752460076814,8.13492351,164.11,164.1,33.64]
[1752460077382,7.42492351,164.11,164.1,33.64]
[1752460078611,7.42492351,164.11,164.1,33.62]
[1752460079940,7.42492351,164.11,164.1,33.65]
[1752460080123,7.42492351,164.11,164.1,59.91]
[1752460081611,7.42492351,164.11,164.1,149.51]
[1752460081828,7.42492351,164.11,164.1,157.52853274]
[1752460082028,7.42492351,164.11,164.1,141.89]
[1752460082232,7.42492351,164.11,164.1,175.85]
[1752460082648,8.10492351,164.11,164.1,175.85]
[1752460082819,16.12345625,164.11,164.1,175.85]
[1752460083021,16.12345625,164.11,164.1,60.25]
[1752460083438,16.12345625,164.11,164.07,26.26]
[1752460083657,8.01853274,164.08,164.07,26.26]
[1752460083947,8.69853274,164.08,164.07,26.26]
[1752460084645,8.69853274,164.08,164.07,60.26]
[1752460085018,0.68,164.08,164.07,60.26]
[1752460085231,8.69853274,164.08,164.07,60.26]
[1752460086031,15.21913274,164.08,164.07,60.26]
[1752460088371,16.87303274,164.08,164.07,60.26]
[1752460088674,16.87303274,164.08,164.05,0.03]
[1752460088831,0.68,164.07,164.05,0.03]
[1752460089041,8.01853274,164.06,164.05,0.03]
[1752460089546,8.69853274,164.06,164.05,0.03]
[1752460089756,8.69853274,164.06,164.05,33.93]
[1752460091199,0.68,164.06,164.05,33.93]
[1752460091477,8.69853274,164.06,164.05,33.93]
[1752460092044,8.69853274,164.06,164.05,0.03]
[1752460092357,8.69853274,164.06,164.05,33.89]
[1752460093440,8.69853274,164.06,164.03,26.29]
[1752460093639,8.01853274,164.04,164.03,26.29]
[1752460093938,8.69853274,164.04,164.03,26.29]
[1752460094865,8.69853274,164.04,164.03,60.09]
[1752460099270,26.98391671,164.04,164.03,26.29]
[1752460099474,26.98391671,164.04,164.03,33.74]
[1752460101178,23.77800004,164.04,163.99,26.28]
[1752460101495,4.81261607,164.0,163.99,26.28]
[1752460102152,0.68,164.02,163.99,59.96]
[1752460102359,0.68,164.01,163.99,59.96]
[1752460102557,4.81261607,164.0,163.99,59.96]
[1752460103373,5.49261607,164.0,163.99,59.96]
[1752460103962,10.30523214,164.0,163.99,59.96]
[1752460104966,10.30523214,164.0,163.98,0.03]
[1752460105196,4.81261607,163.98,163.96,26.28]
[1752460105487,2.194,163.99,163.96,26.28]
[1752460105488,5.49261607,163.97,163.96,26.28]
[1752460105779,5.49261607,163.97,163.93,0.2]
[1752460105984,4.81261607,163.94,163.93,0.2]
[1752460106161,5.49261607,163.94,163.93,0.2]
[1752460106367,5.49261607,163.94,163.93,33.88]
[1752460106763,11.81923214,163.94,163.91,26.28]
[1752460106968,8.030086,163.92,163.91,26.28]
[1752460107187,8.710086,163.92,163.91,26.28]
[1752460107701,33.52485597,163.92,163.91,26.28]
[1752460107887,16.78468397,163.91,163.88,0.03]
[1752460108073,8.030086,163.89,163.88,0.03]
[1752460108392,1.514,163.88,163.86,0.03]
[1752460108593,8.030086,163.87,163.86,0.03]
[1752460108794,6.7002,163.95,163.87,0.29]
[1752460108999,8.030086,163.92,163.87,0.29]
[1752460109293,8.030086,163.91,163.86,33.67]
[1752460109593,8.030086,163.89,163.86,33.67]
[1752460109966,8.030086,163.91,163.87,0.29]
[1752460110185,0.68,163.92,163.86,41.700086]
[1752460110186,0.68,163.94,163.88,0.29]
[1752460110383,8.030086,163.91,163.89,33.62]
[1752460111200,8.030086,163.9,163.85,60.310086]
[1752460111369,8.030086,163.89,163.85,52.28]
[1752460111568,0.71,163.89,163.85,52.28]
[1752460111765,0.71,163.91,163.85,60.310086]
[1752460112079,1.514,163.96,163.9,8.030086]
[1752460112268,8.030086,163.94,163.9,8.030086]
[1752460112474,8.030086,163.94,163.89,8.030086]
[1752460112674,2.224,163.96,163.9,8.030086]
[1752460112675,8.030086,163.95,163.9,8.030086]
[1752460112997,8.030086,163.96,163.91,8.030086]
[1752460113295,8.030086,163.96,163.9,33.6]
[1752460113296,8.030086,163.97,163.9,33.6]
[1752460113591,8.030086,163.97,163.92,8.030086]
[1752460113793,0.71,163.98,163.89,26.0]
[1752460113794,8.030086,163.98,163.93,41.610086]
[1752460114097,8.030086,163.98,163.94,33.58]
[1752460114975,8.030086,163.97,163.94,33.58]
[1752460115283,8.030086,163.98,163.94,33.58]
[1752460115487,2.224,164.0,163.95,8.030086]
[1752460115488,1.514,164.0,163.95,8.030086]
[1752460115680,8.030086,164.01,163.96,8.030086]
[1752460115870,8.030086,164.0,163.97,33.54]
[1752460116199,8.740086,163.99,163.97,33.54]
[1752460116368,8.030086,163.98,163.97,33.54]
[1752460116573,0.71,164.01,163.97,33.54]
[1752460116774,8.030086,163.99,163.97,33.54]
[1752460117297,8.030086,163.98,163.97,33.54]
[1752460117813,8.030086,163.99,163.97,33.54]
[1752460118006,8.740086,163.98,163.97,33.54]
[1752460118790,0.71,163.98,163.97,33.54]
[1752460118971,8.740086,163.98,163.97,33.54]
[1752460119897,0.71,163.98,163.97,33.54]
[1752460120109,8.740086,163.98,163.97,33.54]
[1752460121292,8.740086,163.98,163.9,8.030086]
[1752460121487,8.030086,163.95,163.91,33.42]
[1752460122086,8.030086,163.97,163.91,33.42]
[1752460122294,0.71,164.01,163.93,8.030086]
[1752460122607,8.030086,163.99,163.94,41.430086]
[1752460122783,8.030086,163.99,163.94,33.4]
[1752460123098,0.71,164.01,163.94,41.430086]
[1752460123304,8.030086,163.99,163.94,33.4]
[1752460123472,8.030086,163.99,163.94,41.430086]
[1752460123672,6.0202,164.03,163.94,41.430086]
[1752460123673,6.7302,164.03,163.96,8.030086]
[1752460123873,8.030086,164.0,163.95,8.030086]
[1752460124310,0.71,164.02,163.94,33.4]
[1752460124494,8.030086,164.0,163.95,8.030086]
[1752460124676,8.030086,163.99,163.94,41.430086]
[1752460124879,8.030086,163.97,163.94,33.4]
[1752460125279,0.71,164.0,163.94,33.4]
[1752460125487,8.030086,163.98,163.94,33.4]
[1752460125803,8.030086,163.95,163.94,33.4]
[1752460126000,8.030086,163.96,163.94,33.4]
[1752460126205,8.030086,163.95,163.92,0.6]
[1752460126376,0.71,163.95,163.93,33.32]
[1752460126577,8.030086,163.94,163.93,33.32]
[1752460127110,8.030086,163.95,163.93,33.32]
[1752460128008,8.030086,163.96,163.93,33.32]
[1752460129011,4.81408096,163.95,163.93,33.32]
[1752460129190,4.81408096,163.94,163.93,33.32]
[1752460129384,5.52408096,163.94,163.93,33.32]
[1752460132286,4.81408096,163.94,163.93,33.32]
[1752460133997,4.81408096,163.95,163.93,33.32]
[1752460134924,1.6035,163.97,163.93,33.32]
[1752460135089,4.81408096,163.97,163.93,33.32]
[1752460135500,4.81408096,163.96,163.93,33.32]
[1752460135805,0.71,163.99,163.93,33.32]
[1752460136005,4.81408096,163.96,163.93,122.92]
[1752460136218,0.71,163.99,163.93,122.92]
[1752460136513,4.81408096,163.96,163.93,122.92]
[1752460138325,4.81408096,163.94,163.92,0.6]
[1752460138501,0.71,163.95,163.92,0.6]
[1752460138502,0.71,163.95,163.93,59.44]
[1752460138702,4.81408096,163.94,163.93,59.44]
[1752460138889,5.52408096,163.94,163.93,59.44]
[1752460139093,4.81408096,163.94,163.93,59.44]
[1752460139307,0.71,163.96,163.93,59.44]
[1752460139504,4.81408096,163.94,163.93,59.44]
[1752460140418,4.81408096,164.0,163.93,59.44]
[1752460140419,0.71,163.98,163.93,59.44]
[1752460140819,4.81408096,163.95,163.93,59.44]
[1752460140994,4.81408096,163.94,163.93,59.44]
[1752460141418,5.48408096,163.94,163.93,59.44]
[1752460141824,0.67,163.98,163.93,59.44]
[1752460142110,4.81408096,163.97,163.93,59.44]
[1752460142493,4.81408096,163.98,163.93,64.25408096]
[1752460142713,4.81408096,163.97,163.93,59.44]
[1752460143610,4.81408096,164.0,163.93,149.04]
[1752460143818,4.81408096,164.0,163.95,4.81408096]
[1752460144105,2.2788,164.01,163.96,33.08]
[1752460144308,4.81408096,164.0,163.96,33.08]
[1752460144512,4.81408096,163.97,163.96,33.08]
[1752460145590,4.81408096,163.99,163.96,33.08]
[1752460145812,4.81408096,163.98,163.96,33.08]
[1752460146923,4.81408096,163.99,163.96,122.68]
[1752460147095,2.2788,164.01,163.96,89.6]
[1752460147412,4.81408096,163.99,163.97,33.04]
[1752460147610,4.81408096,163.99,163.97,122.64]
[1752460148129,2.2788,164.01,163.97,122.64]
[1752460148408,4.81408096,163.99,163.97,122.64]
[1752460150292,2.2788,164.01,163.97,122.64]
[1752460150520,4.81408096,163.99,163.97,122.64]
[1752460151294,5.48408096,163.99,163.97,122.64]
[1752460151489,4.81408096,163.98,163.97,89.6]
[1752460151713,4.81408096,163.98,163.97,122.6]
[1752460152219,5.48408096,163.98,163.97,122.6]
[1752460152601,5.48408096,163.98,163.97,33.0]
[1752460154319,5.48408096,163.98,163.97,59.28]
[1752460154509,4.81408096,163.98,163.97,59.28]
[1752460155050,5.48408096,163.98,163.97,59.28]
[1752460161921,5.48408096,163.98,163.97,26.28]
[1752460162125,5.48408096,163.98,163.97,59.08]
[1752460163034,6.4143,163.97,163.95,26.28]
[1752460163235,7.01728096,163.96,163.95,26.28]
[1752460163935,7.01728096,163.96,163.88,89.6]
[1752460163936,7.01728096,163.96,163.93,26.28]
[1752460164136,0.67,163.95,163.93,26.28]
[1752460164315,4.81408096,163.94,163.93,26.28]
[1752460164516,5.48408096,163.94,163.93,59.08]
[1752460164925,10.29816192,163.94,163.93,59.08]
[1752460165126,10.29816192,163.94,163.93,26.28]
[1752460165307,10.29816192,163.94,163.93,32.78]
[1752460165641,10.29816192,163.94,163.9,26.28]
[1752460165642,16.78468397,163.93,163.9,26.28]
[1752460165842,4.81408096,163.91,163.88,26.3]
[1752460166141,4.81408096,163.89,163.88,26.3]
[1752460166436,5.48408096,163.89,163.88,26.3]
[1752460166736,5.48408096,163.89,163.86,26.33]
[1752460166912,4.81408096,163.87,163.86,26.33]
[1752460167110,5.48408096,163.87,163.86,26.33]
[1752460167713,0.67,163.89,163.86,26.33]
[1752460167913,4.81408096,163.89,163.86,26.33]
[1752460168115,0.67,163.92,163.87,32.78]
[1752460168341,6.4242,163.94,163.87,32.78]
[1752460168342,4.81408096,163.9,163.87,32.78]
[1752460169332,4.81408096,163.89,163.87,32.78]
[1752460169632,2.2341,163.95,163.88,4.81408096]
[1752460169832,2.2341,163.95,163.87,32.78]
[1752460169833,4.81408096,163.92,163.89,32.78]
[1752460170039,4.81408096,163.91,163.89,32.78]
[1752460171540,4.81408096,163.94,163.89,37.59408096]
[1752460172020,4.81408096,163.95,163.9,4.81408096]
[1752460172226,4.81408096,163.95,163.89,32.78]
[1752460172423,4.81408096,163.96,163.91,4.81408096]
[1752460172723,4.81408096,163.95,163.92,32.74]
[1752460172939,0.7,163.97,163.93,32.74]
[1752460173129,4.81408096,163.94,163.93,32.74]
[1752460173331,5.51408096,163.94,163.93,32.74]
[1752460174130,0.7,163.94,163.93,32.74]
[1752460174355,2.3633,163.99,163.93,32.74]
[1752460174561,1.6633,163.99,163.94,4.81408096]
[1752460174859,4.81408096,164.01,163.96,4.81408096]
[1752460175025,4.81408096,164.01,163.97,32.78]
[1752460175223,0.7,164.03,163.97,32.78]
[1752460175453,4.81408096,164.01,163.97,32.78]
[1752460175666,4.81408096,164.0,163.97,32.78]
[1752460175828,4.81408096,163.99,163.97,32.78]
[1752460176034,4.81408096,163.98,163.97,32.78]
[1752460176424,5.51408096,163.98,163.91,26.0]
[1752460176629,4.81408096,163.96,163.92,32.76]
[1752460176856,0.7,163.96,163.92,32.76]
[1752460177048,4.81408096,163.94,163.92,32.76]
[1752460178327,0.7,163.96,163.92,32.76]
[1752460178568,16.78468397,164.03,163.93,26.3]
[1752460178863,4.81408096,163.98,163.93,31.11408096]
[1752460179065,0.7,164.0,163.93,26.3]
[1752460179230,4.81408096,163.97,163.93,26.3]
[1752460180461,18.42748397,164.04,163.93,26.3]
[1752460180462,4.81408096,163.98,163.93,31.11408096]
[1752460180670,4.81408096,163.98,163.93,26.3]
[1752460180837,4.81408096,163.97,163.93,26.3]
[1752460181034,4.81408096,163.96,163.93,26.3]
[1752460181345,0.7,163.97,163.93,26.3]
[1752460181558,4.81408096,163.95,163.93,26.3]
[1752460181935,4.81408096,163.96,163.93,26.3]
[1752460182136,0.7,163.99,163.93,115.9]
[1752460182343,4.81408096,163.96,163.93,115.9]
[1752460183059,0.7,163.99,163.93,115.9]
[1752460183251,4.81408096,163.95,163.93,115.9]
[1752460183450,4.81408096,163.94,163.93,115.9]
[1752460183656,4.81408096,163.94,163.93,26.3]
[1752460184065,0.7,163.97,163.93,26.3]
[1752460184283,0.7,163.96,163.94,32.7]
[1752460184428,5.51408096,163.95,163.94,32.7]
[1752460184627,4.81408096,163.95,163.94,32.7]
[1752460184853,5.51408096,163.95,163.94,32.7]
[1752460185481,0.7,163.95,163.94,32.7]
[1752460185637,5.51408096,163.95,163.94,32.7]
[1752460186551,0.7,163.97,163.94,32.7]
[1752460186746,4.81408096,163.98,163.94,32.7]
[1752460187052,4.81408096,163.97,163.94,32.7]
[1752460187248,4.81408096,163.98,163.94,32.7]
[1752460187459,0.7,164.0,163.94,32.7]
[1752460187764,4.81408096,163.99,163.94,37.51408096]
[1752460187953,4.81408096,163.98,163.94,32.7]
[1752460188345,4.81408096,163.98,163.95,0.5]
[1752460188542,4.81408096,163.98,163.96,32.68]
[1752460188950,8.02081661,163.98,163.96,32.68]
[1752460189957,8.02081661,163.99,163.96,32.68]
[1752460190467,8.02081661,163.98,163.96,32.68]
[1752460191138,8.02081661,163.99,163.96,32.68]
[1752460192048,8.02081661,164.0,163.96,32.68]
[1752460193042,8.72081661,164.0,163.97,26.3]
[1752460193244,8.02081661,163.99,163.97,26.3]
[1752460193557,8.02081661,163.98,163.97,26.3]
[1752460193863,8.72081661,163.99,163.97,58.9]
[1752460194364,8.72081661,163.98,163.97,26.3]
[1752460194555,8.02081661,163.98,163.97,58.9]
[1752460195150,0.7,163.99,163.97,58.9]
[1752460195363,8.02081661,163.98,163.97,58.9]
[1752460196567,8.72081661,163.98,163.97,58.9]
[1752460196746,8.02081661,163.98,163.97,58.9]
[1752460197971,0.76,164.0,163.97,58.9]
[1752460198275,8.02081661,163.98,163.97,58.9]
[1752460198574,8.72081661,163.98,163.97,58.9]
[1752460200380,8.7272,163.98,163.97,58.9]
[1752460200675,16.74801661,163.98,163.97,58.9]
[1752460200865,0.76,164.0,163.97,58.9]
[1752460201062,0.06,164.0,163.97,58.9]
[1752460201444,0.06,164.0,163.99,8.02081661]
[1752460201639,0.06,164.0,163.99,70.82810345]
[1752460201845,0.06,164.0,163.99,98.78308927]
[1752460202260,0.06,164.0,163.99,88.68333341]
[1752460202463,0.06,164.0,163.99,104.72496663]
[1752460202667,0.06,164.0,163.99,88.68333341]
[1752460202851,0.06,164.0,163.99,96.70415002]
[1752460203047,0.06,164.05,163.99,104.72496663]
[1752460203257,0.06,164.05,164.04,24.80550058]
[1752460203456,0.06,164.05,164.04,75.69550058]
[1752460203972,0.06,164.05,164.04,83.52757938]
[1752460204473,0.06,164.07,164.06,67.63468397]
[1752460204646,0.06,164.07,164.06,122.02945674]
[1752460205964,7.42492351,164.11,164.1,61.07468397]
[1752460206155,7.42492351,164.11,164.1,117.52839599]
[1752460206561,7.42492351,164.11,164.1,109.50757938]
[1752460207161,7.42492351,164.11,164.1,117.52839599]
[1752460207346,7.42492351,164.11,164.1,109.50757938]
[1752460207749,7.42492351,164.11,164.1,66.65839599]
[1752460208063,7.42492351,164.11,164.1,83.21676277]
[1752460208267,7.42492351,164.11,164.1,99.25839599]
[1752460208760,7.42492351,164.11,164.1,117.54839599]
[1752460208951,7.42492351,164.11,164.1,83.21676277]
[1752460209152,7.42492351,164.11,164.1,91.23757938]
[1752460209352,7.42492351,164.11,164.1,99.25839599]
[1752460210666,7.42492351,164.11,164.1,117.54839599]
[1752460211362,7.42492351,164.11,164.1,147.06550058]
[1752460213376,7.42492351,164.11,164.1,57.46550058]
[1752460214782,7.42492351,164.11,164.1,309.72778051]
[1752460214973,7.42492351,164.11,164.1,309.11839599]